Body,Body Name,Date,TransNo,Amount � (Excl VAT),Supplier name,Description,Expense Area,Expense Type,Expense Code,
http://opendatacommunities.org/id/london-borough-council/sutton,London Borough of Sutton,22/07/2022,10008653,8.32, TWINKL,TWINKL SUBSCRIPTION,Health and Wellbeing,Equipment And Materials Purchase,A40000,
http://opendatacommunities.org/id/london-borough-council/sutton,London Borough of Sutton,21/07/2022,10008653,22.47, AMZNMKTPLACE,TOYS AND EQUIPMENT,Health and Wellbeing,Equipment And Materials Purchase,A40000,
http://opendatacommunities.org/id/london-borough-council/sutton,London Borough of Sutton,20/07/2022,10008653,7.73, AMZNMKTPLACE,TOYS AND EQUIPMENT,Health and Wellbeing,Equipment And Materials Purchase,A40000,
http://opendatacommunities.org/id/london-borough-council/sutton,London Borough of Sutton,20/07/2022,10008653,58.18, AMZNMKTPLACE,TOYS AND EQUIPMENT,Health and Wellbeing,Equipment And Materials Purchase,A40000,
http://opendatacommunities.org/id/london-borough-council/sutton,London Borough of Sutton,20/07/2022,10008653,17.66, AMZNMKTPLACE,HAF LUNCH BAGS/SPOONS,Health and Wellbeing,Equipment And Materials Purchase,A40000,
http://opendatacommunities.org/id/london-borough-council/sutton,London Borough of Sutton,14/07/2022,10008653,20.58, BAKER ROSS,TOYS AND EQUIPMENT,Health and Wellbeing,Equipment And Materials Purchase,A40000,
http://opendatacommunities.org/id/london-borough-council/sutton,London Borough of Sutton,07/07/2022,10008653,27.67, BAKER ROSS,TOYS AND EQUIPMENT,Health and Wellbeing,Equipment And Materials Purchase,A40000,
http://opendatacommunities.org/id/london-borough-council/sutton,London Borough of Sutton,05/07/2022,10008653,14.17, AMAZON.CO.UK 2Y2XJ9QK4,TOYS & EQUIPMENT,Health and Wellbeing,Equipment And Materials Purchase,A40000,
http://opendatacommunities.org/id/london-borough-council/sutton,London Borough of Sutton,29/06/2022,10008653,17.32, AMZNMKTPLACE,TOYS AND EQUIPMENT,Health and Wellbeing,Equipment And Materials Purchase,A40000,
http://opendatacommunities.org/id/london-borough-council/sutton,London Borough of Sutton,02/07/2022,10008653,12.50, THE RANGE,TOYS AND EQUIPMENT,Health and Wellbeing,Equipment And Materials Purchase,A40000,
http://opendatacommunities.org/id/london-borough-council/sutton,London Borough of Sutton,01/07/2022,10008653,8.92, POUNDLAND LTD,TOYS AND EQUIPMENT,Health and Wellbeing,Equipment And Materials Purchase,A40000,
http://opendatacommunities.org/id/london-borough-council/sutton,London Borough of Sutton,29/06/2022,10008653,12.58, AMAZON.CO.UK 2Y0BB0NH4,TOYS AND EQUIPMENT,Health and Wellbeing,Equipment And Materials Purchase,A40000,
http://opendatacommunities.org/id/london-borough-council/sutton,London Borough of Sutton,29/06/2022,10008653,39.98, AMZNMKTPLACE,TOYS AND EQUIPMENT,Health and Wellbeing,Equipment And Materials Purchase,A40000,
http://opendatacommunities.org/id/london-borough-council/sutton,London Borough of Sutton,04/07/2022,10008653,147.75, SMYTHS TOYS CROYDON,TOYS AND EQUIPMENT,Health and Wellbeing,Equipment And Materials Purchase,A40000,
http://opendatacommunities.org/id/london-borough-council/sutton,London Borough of Sutton,04/07/2022,10008653,82.07, TESCO STORES 5999,GROCERIES,Health and Wellbeing,Provisions,A41006,
http://opendatacommunities.org/id/london-borough-council/sutton,London Borough of Sutton,29/06/2022,10008653,10.50, SAINSBURYS S/MKTS,GROCERIES,Health and Wellbeing,Provisions,A41006,
http://opendatacommunities.org/id/london-borough-council/sutton,London Borough of Sutton,27/06/2022,10008653,39.37, SAINSBURYS S/MKTS,GROCERIES,Health and Wellbeing,Provisions,A41006,
http://opendatacommunities.org/id/london-borough-council/sutton,London Borough of Sutton,05/07/2022,10008653,5.76, SAINSBURYS S/MKTS,GROCERIES REFUND,Health and Wellbeing,Provisions,A41006,
http://opendatacommunities.org/id/london-borough-council/sutton,London Borough of Sutton,05/07/2022,10008653,-75.57, TESCO STORES 5999,GROCERIES REFUND,Health and Wellbeing,Provisions,A41006,
http://opendatacommunities.org/id/london-borough-council/sutton,London Borough of Sutton,05/07/2022,10008653,-82.07, TESCO STORE 3539,GROCERIES,Health and Wellbeing,Provisions,A41006,
http://opendatacommunities.org/id/london-borough-council/sutton,London Borough of Sutton,06/07/2022,10008653,85.32, TESCO STORES 5999,GROCERIES,Health and Wellbeing,Provisions,A41006,
http://opendatacommunities.org/id/london-borough-council/sutton,London Borough of Sutton,14/07/2022,10008653,28.68, SP BROADWYCANDY.COM,ICE LOLLIES,Health and Wellbeing,Provisions,A41006,
http://opendatacommunities.org/id/london-borough-council/sutton,London Borough of Sutton,12/07/2022,10008653,13.90, ASDA SUPERSTORE,GROCERIES,Health and Wellbeing,Provisions,A41006,
http://opendatacommunities.org/id/london-borough-council/sutton,London Borough of Sutton,18/07/2022,10008653,44.52, TESCO STORES 5999,GROCERIES,Health and Wellbeing,Provisions,A41006,
http://opendatacommunities.org/id/london-borough-council/sutton,London Borough of Sutton,25/07/2022,10008653,109.74, TESCO STORES 5999,GROCERIES,Health and Wellbeing,Provisions,A41006,
http://opendatacommunities.org/id/london-borough-council/sutton,London Borough of Sutton,25/07/2022,10008653,12.00, FACEBK  E7KGSFPWG2,DIGITAL COMMS,Health and Wellbeing,Publicity,A44266,
http://opendatacommunities.org/id/london-borough-council/sutton,London Borough of Sutton,29/06/2022,10008653,26.64, AMZNMKTPLACE,"SPLIT - ZMCYN 40 PACK 1.6X3.9 INCH CARDBOARD TUBES BROWN PAPER ROLL TUBES, ROUND PAPER TUBES FOR CRAFT, DIY ARTS, CLASSROOM PROJECTS, COME WITH 100 SHEETS COL (100%)",Health and Wellbeing,Publicity,A44266,
http://opendatacommunities.org/id/london-borough-council/sutton,London Borough of Sutton,19/07/2022,10008653,1.75, FACEBK  9EHCAG7XG2,DIGITAL COMMS,Health and Wellbeing,Publicity,A44266,
http://opendatacommunities.org/id/london-borough-council/sutton,London Borough of Sutton,17/07/2022,10008653,1.74, FACEBK  WDGR4FXWG2,DIGITAL COMMS,Health and Wellbeing,Publicity,A44266,
http://opendatacommunities.org/id/london-borough-council/sutton,London Borough of Sutton,13/07/2022,10008653,10.00, EB  REFUND TO BUYER,DIGITAL COMMS,Health and Wellbeing,Publicity,A44266,
http://opendatacommunities.org/id/london-borough-council/sutton,London Borough of Sutton,29/06/2022,10008653,5.64, AMZNMKTPLACE,"SPLIT - PIPE CLEANERS FOR CRAFT - 100 ASSORTED 15CM X 4MM , MULTI COLOUR PIPE CLEANERS, ARTS & CRAFT, CRAFTING, PIPECLEANERS, GREEN, RED, WHITE, BROWN, ORANGE (100%)",Health and Wellbeing,Arts Programme,A44286,
http://opendatacommunities.org/id/london-borough-council/sutton,London Borough of Sutton,28/06/2022,10008653,7.16, AMZNMKTPLACE,"SPLIT - CAYDO 300 PCS MULTICOLOR CRAFT POM POMS, 2.5 CM FUZZY POMPOMS BALLS WITH 100 PCS WIGGLE EYES FOR KIDS DIY CREATIVE CRAFTS PROJECTS DECORATIONS (100%)",Health and Wellbeing,Arts Programme,A44286,
http://opendatacommunities.org/id/london-borough-council/sutton,London Borough of Sutton,25/07/2022,10008653,14.98, AMZNMKTPLACE,"SPLIT - 25 CARDBOARD BOXES 4X4X4 INCH WHITE SHIPPING BOX, 101X101X101MM KRAFT CORRUGATED SMALL MAILING BOXES (100%)",Health and Wellbeing,Arts Programme,A44286,
http://opendatacommunities.org/id/london-borough-council/sutton,London Borough of Sutton,25/07/2022,10008653,5.32, AMZNMKTPLACE,"SPLIT - HOUSE OF CARD & PAPER A4 220 GSM CARD - BLACK, PACK OF 50 SHEETS (40.49%)",Health and Wellbeing,Arts Programme,A44286,
http://opendatacommunities.org/id/london-borough-council/sutton,London Borough of Sutton,25/07/2022,10008653,7.82, AMZNMKTPLACE,SPLIT - HOUSE OF CARD & PAPER A3 220 GSM CARD - WHITE (PACK OF 50 SHEETS) (59.51%),Health and Wellbeing,Arts Programme,A44286,
http://opendatacommunities.org/id/london-borough-council/sutton,London Borough of Sutton,25/07/2022,10008653,19.96, AMZNMKTPLACE,SPLIT - THE GLOWHOUSE AIR DRYING MODELLING CLAY NYLON REINFORCED 12.5KG (TERRACOTTA) (100%),Health and Wellbeing,Arts Programme,A44286,
http://opendatacommunities.org/id/london-borough-council/sutton,London Borough of Sutton,25/07/2022,10008653,14.04, AMZNMKTPLACE,SPLIT - I LOVE FANCY DRESS ILFD4048ST LADIES TUDOR MAID COSTUME (STANDARD) (100%),Health and Wellbeing,Arts Programme,A44286,
http://opendatacommunities.org/id/london-borough-council/sutton,London Borough of Sutton,28/06/2022,10008653,3.67, AMZNMKTPLACE,SPLIT - 8 ROLLS CLEAR STICKY TAPE 19MM X 33M (100%),Health and Wellbeing,Arts Programme,A44286,
http://opendatacommunities.org/id/london-borough-council/sutton,London Borough of Sutton,28/06/2022,10008653,10.99, AMZNMKTPLACE,"SPLIT - CAYDO 300 PCS MULTICOLOR CRAFT POM POMS, 2.5 CM FUZZY POMPOMS BALLS WITH 100 PCS WIGGLE EYES FOR KIDS DIY CREATIVE CRAFTS PROJECTS DECORATIONS (100%)",Health and Wellbeing,Arts Programme,A44286,
http://opendatacommunities.org/id/london-borough-council/sutton,London Borough of Sutton,28/06/2022,10008653,8.99, AMZNMKTPLACE,"SPLIT - FUKTSYSM COLOURED CARD - NEW 24 ASSORTED COLOURS, A4 120 SHEET PACK 230GM, MORE FUN CRAFTING AND DECORATING, SKETCH AND CUTTING PAPER, 24 ASSORTED COL (0%)",Health and Wellbeing,Arts Programme,A44286,
http://opendatacommunities.org/id/london-borough-council/sutton,London Borough of Sutton,28/06/2022,10008653,-8.99, AMZNMKTPLACE,BALANCING ENTRY AMOUNT (0%),Health and Wellbeing,Arts Programme,A44286,
http://opendatacommunities.org/id/london-borough-council/sutton,London Borough of Sutton,28/06/2022,10008653,6.66, AMZNMKTPLACE,"SPLIT - AIEX 8 ROLLS COLORED TAPE RAINBOW TAPE WRITABLE MASKING TAPE SET WITH 8 ASSORTED COLORS FOR CRAFT, DIY, COLOR CODED, 15MM WIDE (100%)",Health and Wellbeing,Arts Programme,A44286,
http://opendatacommunities.org/id/london-borough-council/sutton,London Borough of Sutton,28/06/2022,10008653,11.99, AMZNMKTPLACE,"SPLIT - BRIGHT CREATIONS BROWN PAPER CARDBOARD CRAFT TUBE ROLLS (50-PACK) - 2 SIZES, 25 OF EACH, 15.2 AND 19 CM TALL (100%)",Health and Wellbeing,Arts Programme,A44286,
http://opendatacommunities.org/id/london-borough-council/sutton,London Borough of Sutton,28/06/2022,10008653,4.99, AMZNMKTPLACE,SPLIT - 1000 PCS WIGGLE EYES SELF ADHESIVE BLACK WHITE GOOGLY EYES FOR DIY CRAFTS DECORATION (8MM) (100%),Health and Wellbeing,Arts Programme,A44286,
http://opendatacommunities.org/id/london-borough-council/sutton,London Borough of Sutton,28/06/2022,10008653,21.32, AMZNMKTPLACE,"SPLIT - ZMCYN 40 PACK 1.6X3.9 INCH CARDBOARD TUBES BROWN PAPER ROLL TUBES, ROUND PAPER TUBES FOR CRAFT, DIY ARTS, CLASSROOM PROJECTS, COME WITH 100 SHEETS COL (100%)",Health and Wellbeing,Arts Programme,A44286,
http://opendatacommunities.org/id/london-borough-council/sutton,London Borough of Sutton,28/06/2022,10008653,31.96, AMZNMKTPLACE,"SPLIT - ZMCYN 40 PACK 1.6X3.9 INCH CARDBOARD TUBES BROWN PAPER ROLL TUBES, ROUND PAPER TUBES FOR CRAFT, DIY ARTS, CLASSROOM PROJECTS, COME WITH 100 SHEETS COL (100%)",Health and Wellbeing,Arts Programme,A44286,
http://opendatacommunities.org/id/london-borough-council/sutton,London Borough of Sutton,28/06/2022,10008653,25.52, AMZNMKTPLACE,"SPLIT - RAPESCO 1619 300 TAPE DISPENSER & 4 TAPE ROLLS, BLACK (100%)",Health and Wellbeing,Arts Programme,A44286,
http://opendatacommunities.org/id/london-borough-council/sutton,London Borough of Sutton,28/06/2022,10008653,20.34, AMZNMKTPLACE,SPLIT - JAUNTY PARTYWARE 70 PREMIUM QUALITY PARTY BALLOONS ASSORTED COLOUR LATEX BALLOONS FOR KIDS | RAINBOW BALLOONS | BALLOONS PACK IDEAL FOR PARTY BAG FILL (100%),Health and Wellbeing,Arts Programme,A44286,
http://opendatacommunities.org/id/london-borough-council/sutton,London Borough of Sutton,01/07/2022,10008653,237.60, RICHARD HAWORTH,TABLECLOTHS FOR HONEYWOOD HERITAGE HOUSE,Health and Wellbeing,Equipment And Materials Purchase,A40000,
http://opendatacommunities.org/id/london-borough-council/sutton,London Borough of Sutton,13/07/2022,10008653,35.00, RM SUBSCRIPTION,professional subscription,Resources,Miscellaneous Expenses,A49000,
http://opendatacommunities.org/id/london-borough-council/sutton,London Borough of Sutton,03/07/2022,10008653,8.32, SPOTIFY UK,MUSIC FOR WEDDINGS,Health and Wellbeing,Subscriptions,A47010,
http://opendatacommunities.org/id/london-borough-council/sutton,London Borough of Sutton,26/06/2022,10008653,14.44, MORDEN GARDEN CENTRE,PLANTS FOR GARDEN,Health and Wellbeing,Miscellaneous Expenses,A49000,
http://opendatacommunities.org/id/london-borough-council/sutton,London Borough of Sutton,12/07/2022,10008653,0.55, EXCHANGE FEE,Subscription for Procurement Team - foreign exchange fee,Resources,IT Software Purchase,A45040,
http://opendatacommunities.org/id/london-borough-council/sutton,London Borough of Sutton,11/07/2022,10008653,20.14, SCREENCASTIFY UNLIMITE,Subscription for Procurement Team,Resources,IT Software Purchase,A45040,
http://opendatacommunities.org/id/london-borough-council/sutton,London Borough of Sutton,08/07/2022,10008653,8.10, WILKO RETAIL LIMITED,WILKO ORDER - WIPES,Peoples Services,Equipment And Materials Purchase,A40000,
http://opendatacommunities.org/id/london-borough-council/sutton,London Borough of Sutton,22/07/2022,10008653,110.50, WILKO RETAIL LIMITED,BUSINESS SUPPORT FANS,Peoples Services,IT Hardware Purchase,A45005,
http://opendatacommunities.org/id/london-borough-council/sutton,London Borough of Sutton,21/07/2022,10008653,4.51, AMZNMKTPLACE,"SPLIT - AMAZON BASICS HIGH-SPEED, ULTRA HD HDMI 2.0 CABLE, SUPPORTS 3D FORMATS AND WITH AUDIO RETURN CHANNEL, 1.8 M (100%)",Peoples Services,Miscellaneous Expenses,A49000,
http://opendatacommunities.org/id/london-borough-council/sutton,London Borough of Sutton,21/07/2022,10008653,9.64, AMZNMKTPLACE,"SPLIT - TRD UK KETTLE LEAD 1.8M POWER LEAD 0.5M, 1M, 3M & 5M 3 PIN POWER CABLE FOR TV, PC, MONITOR, PLUG, PRINTERS POWER CORD (1.8M) (100%)",Peoples Services,Miscellaneous Expenses,A49000,
http://opendatacommunities.org/id/london-borough-council/sutton,London Borough of Sutton,21/07/2022,10008653,4.82, AMZNMKTPLACE,"SPLIT - TRD UK KETTLE LEAD 1.8M POWER LEAD 0.5M, 1M, 3M & 5M 3 PIN POWER CABLE FOR TV, PC, MONITOR, PLUG, PRINTERS POWER CORD (1.8M) (100%)",Peoples Services,Miscellaneous Expenses,A49000,
http://opendatacommunities.org/id/london-borough-council/sutton,London Borough of Sutton,21/07/2022,10008653,6.80, AMZNMKTPLACE,"SPLIT - KENSINGTON KEYBOARD - WIRED KEYBOARD FOR PC, LAPTOP, DESKTOP PC, COMPUTER, NOTEBOOK. USB KEYBOARD COMPATIBLE WITH DELL, ACER, HP, SAMSUNG AND MORE, WI (100%)",Peoples Services,Miscellaneous Expenses,A49000,
http://opendatacommunities.org/id/london-borough-council/sutton,London Borough of Sutton,12/07/2022,10008653,94.00, ECL PLASTICS LTD,CHARITY BUCKET LABELS 2022-2023,Resources,Equipment And Materials Purchase,A40000,
http://opendatacommunities.org/id/london-borough-council/sutton,London Borough of Sutton,06/07/2022,10008653,180.00, BROADWAY COMPUTERS,MAYOR'S CHARITIES BANNERS 2022-2023,Resources,Equipment And Materials Purchase,A40000,
http://opendatacommunities.org/id/london-borough-council/sutton,London Borough of Sutton,10/07/2022,10008653,20.00, OYSTER ONLINE,"AUTOMATIC OYSTER TOP UP FOR""REDACTED - PERSONAL DATA""",Resources,Non-Staff Travel Subsistence & Training,A46006,
http://opendatacommunities.org/id/london-borough-council/sutton,London Borough of Sutton,29/06/2022,10008653,62.29, CAIRN HOTEL,"BREAKFAST FOR""REDACTED - PERSONAL DATA"" ATTENDING THE LGA CONFERENCE 2022",Resources,Members Expenses - Conferences,A46503,
http://opendatacommunities.org/id/london-borough-council/sutton,London Borough of Sutton,14/07/2022,10008653,390.96, MAILCHIMP,MAILCHIMP SUBSCRIPTION LBS,Resources,Publicity,A44266,
http://opendatacommunities.org/id/london-borough-council/sutton,London Borough of Sutton,03/07/2022,10008653,10.85, OTTER.AI,advertisment,Resources,Publicity,A44266,
http://opendatacommunities.org/id/london-borough-council/sutton,London Borough of Sutton,12/07/2022,10008653,16.01, CLIPCHAMP.COM,CLIPCHAMP SUBSCRIPTION,Resources,Publicity,A44266,
http://opendatacommunities.org/id/london-borough-council/sutton,London Borough of Sutton,16/07/2022,10008653,"10,750.00", CS MORRISONS GIFT CARD,CL&G,Resources,"Grants, Contributions & Donations",A47005,
http://opendatacommunities.org/id/london-borough-council/sutton,London Borough of Sutton,14/07/2022,10008653,192.95, ARGOS LTD,CL&G,Resources,"Grants, Contributions & Donations",A47005,
http://opendatacommunities.org/id/london-borough-council/sutton,London Borough of Sutton,13/07/2022,10008653,323.95, ARGOS LTD,CL&G,Resources,"Grants, Contributions & Donations",A47005,
http://opendatacommunities.org/id/london-borough-council/sutton,London Borough of Sutton,11/07/2022,10008653,-4.95, ARGOS LTD,CL&G,Resources,"Grants, Contributions & Donations",A47005,
http://opendatacommunities.org/id/london-borough-council/sutton,London Borough of Sutton,11/07/2022,10008653,-152.00, ARGOS LTD,CL&G,Resources,"Grants, Contributions & Donations",A47005,
http://opendatacommunities.org/id/london-borough-council/sutton,London Borough of Sutton,08/07/2022,10008653,346.95, ARGOS LTD,CL&G,Resources,"Grants, Contributions & Donations",A47005,
http://opendatacommunities.org/id/london-borough-council/sutton,London Borough of Sutton,08/07/2022,10008653,315.95, ARGOS LTD,CL&G,Resources,"Grants, Contributions & Donations",A47005,
http://opendatacommunities.org/id/london-borough-council/sutton,London Borough of Sutton,08/07/2022,10008653,169.00, ARGOS LTD,CL&G,Resources,"Grants, Contributions & Donations",A47005,
http://opendatacommunities.org/id/london-borough-council/sutton,London Borough of Sutton,07/07/2022,10008653,470.00, ARGOS LTD,CL&G,Resources,"Grants, Contributions & Donations",A47005,
http://opendatacommunities.org/id/london-borough-council/sutton,London Borough of Sutton,07/07/2022,10008653,156.95, ARGOS LTD,CL&G,Resources,"Grants, Contributions & Donations",A47005,
http://opendatacommunities.org/id/london-borough-council/sutton,London Borough of Sutton,04/07/2022,10008653,173.95, ARGOS LTD,CL&G,Resources,"Grants, Contributions & Donations",A47005,
http://opendatacommunities.org/id/london-borough-council/sutton,London Borough of Sutton,03/07/2022,10008653,20.00, OYSTER BUS AUTOLOAD,CL&G,Resources,"Grants, Contributions & Donations",A47005,
http://opendatacommunities.org/id/london-borough-council/sutton,London Borough of Sutton,01/07/2022,10008653,229.99, CURRYS ONLINE,CL&G,Resources,"Grants, Contributions & Donations",A47005,
http://opendatacommunities.org/id/london-borough-council/sutton,London Borough of Sutton,01/07/2022,10008653,110.00, ARGOS LTD,CL&G,Resources,"Grants, Contributions & Donations",A47005,
http://opendatacommunities.org/id/london-borough-council/sutton,London Borough of Sutton,30/06/2022,10008653,148.95, ARGOS LTD,CL&G,Resources,"Grants, Contributions & Donations",A47005,
http://opendatacommunities.org/id/london-borough-council/sutton,London Borough of Sutton,21/07/2022,10008653,227.95, ARGOS LTD,CL&G,Resources,"Grants, Contributions & Donations",A47005,
http://opendatacommunities.org/id/london-borough-council/sutton,London Borough of Sutton,21/07/2022,10008653,505.00, ARGOS LTD,CL&G,Resources,"Grants, Contributions & Donations",A47005,
http://opendatacommunities.org/id/london-borough-council/sutton,London Borough of Sutton,18/07/2022,10008653,250.00, ARGOS LTD,CL&G,Resources,"Grants, Contributions & Donations",A47005,
http://opendatacommunities.org/id/london-borough-council/sutton,London Borough of Sutton,18/07/2022,10008653,181.95, ARGOS LTD,CL&G,Resources,"Grants, Contributions & Donations",A47005,
http://opendatacommunities.org/id/london-borough-council/sutton,London Borough of Sutton,18/07/2022,10008653,33.32, AMZNMKTPLACE,TEMPERATURE MONITOR REQUIRED FOR CIVIC.,Resources,Contingency,A49001,
http://opendatacommunities.org/id/london-borough-council/sutton,London Borough of Sutton,07/07/2022,10008653,46.64, AMZNMKTPLACE AMAZON.CO,TABLE FOR CONTACT CENTRE AND CABLE TIDY FOR MEETING ROOMS.,Resources,Contingency,A49001,
http://opendatacommunities.org/id/london-borough-council/sutton,London Borough of Sutton,04/07/2022,10008653,174.41, AMZNMKTPLACE AMAZON.CO,ITEMS REQUIRED FOR LCH INNOVATION GATEWAY - RECHARGE TO E46420,Resources,Contingency,A49001,
http://opendatacommunities.org/id/london-borough-council/sutton,London Borough of Sutton,30/06/2022,10008653,47.97, AMZNMKTPLACE AMAZON.CO,DECORATING EQUIPMENT TO DECORATE ROOM AT THE OLD RECTORY FOR COUNCILLORS VISIT,Resources,Contingency,A49001,
http://opendatacommunities.org/id/london-borough-council/sutton,London Borough of Sutton,30/06/2022,10008653,103.94, SETON,ASSET TAGS FOR FANS AND AIR COOLERS AND OTHER FM EQUIPMENT.,Resources,Contingency,A49001,
http://opendatacommunities.org/id/london-borough-council/sutton,London Borough of Sutton,29/06/2022,10008653,20.00, AMZNMKTPLACE AMAZON.CO,LANYARD HOLDERS FOR LCH INNOVATION GATEWAY - RECHARGE TO E46420.,Resources,Contingency,A49001,
http://opendatacommunities.org/id/london-borough-council/sutton,London Borough of Sutton,01/07/2022,10008653,300.00, IVYCOLLECTION.COM,BALANCING ENTRY AMOUNT (100%),Development Growth and Regeneration,Catering,A41000,
http://opendatacommunities.org/id/london-borough-council/sutton,London Borough of Sutton,25/07/2022,10008653,738.67, THE GRANARY SQUARE BRA,BALANCE OF LONDON CANCER HUB PARTNER LUNCH (EXCLUDING 600.00 DEPOSIT ALREADY PAID),Development Growth and Regeneration,Catering,A41000,
http://opendatacommunities.org/id/london-borough-council/sutton,London Borough of Sutton,12/07/2022,10008653,300.00, IVYCOLLECTION.COM,BALANCING ENTRY AMOUNT (100%),Development Growth and Regeneration,Catering,A41000,
http://opendatacommunities.org/id/london-borough-council/sutton,London Borough of Sutton,13/07/2022,10008653,102.30, LINKEDIN 8035556544,advertisment,Development Growth and Regeneration,Publicity,A44266,
http://opendatacommunities.org/id/london-borough-council/sutton,London Borough of Sutton,13/07/2022,10008653,0.44, LINKEDIN 8035556544,advertisment,Development Growth and Regeneration,Publicity,A44266,
http://opendatacommunities.org/id/london-borough-council/sutton,London Borough of Sutton,26/07/2022,10008653,4.41, QR-CODE-GENERATOR.COM,advertisment,Development Growth and Regeneration,Publicity,A44266,
http://opendatacommunities.org/id/london-borough-council/sutton,London Borough of Sutton,25/07/2022,10008653,160.45, QR-CODE-GENERATOR.COM,BALANCING ENTRY AMOUNT,Development Growth and Regeneration,Publicity,A44266,
http://opendatacommunities.org/id/london-borough-council/sutton,London Borough of Sutton,19/07/2022,10008653,56.98, LINKEDIN 8052040454,advertisment,Development Growth and Regeneration,Publicity,A44266,
http://opendatacommunities.org/id/london-borough-council/sutton,London Borough of Sutton,18/07/2022,10008653,0.93, NOUNPROJECT.COM,advertisment,Development Growth and Regeneration,Publicity,A44266,
http://opendatacommunities.org/id/london-borough-council/sutton,London Borough of Sutton,16/07/2022,10008653,33.97, NOUNPROJECT.COM,advertisment,Development Growth and Regeneration,Publicity,A44266,
http://opendatacommunities.org/id/london-borough-council/sutton,London Borough of Sutton,16/07/2022,10008653,133.61, FACEBK YB3LFGTAL2,advertisment,Development Growth and Regeneration,Publicity,A44266,
http://opendatacommunities.org/id/london-borough-council/sutton,London Borough of Sutton,14/07/2022,10008653,10.00, FACEBK  QBQL6FKQD2,advertisment,Development Growth and Regeneration,Publicity,A44266,
http://opendatacommunities.org/id/london-borough-council/sutton,London Borough of Sutton,09/07/2022,10008653,12.00, FACEBK  EKXTDFXQD2,advertisment,Development Growth and Regeneration,Publicity,A44266,
http://opendatacommunities.org/id/london-borough-council/sutton,London Borough of Sutton,08/07/2022,10008653,7.00, FACEBK  V2QKFG3RD2,advertisment,Development Growth and Regeneration,Publicity,A44266,
http://opendatacommunities.org/id/london-borough-council/sutton,London Borough of Sutton,07/07/2022,10008653,7.00, FACEBK  NH4QGF7QD2,advertisment,Development Growth and Regeneration,Publicity,A44266,
http://opendatacommunities.org/id/london-borough-council/sutton,London Borough of Sutton,07/07/2022,10008653,7.00, FACEBK  3TU9ME3QD2,advertisment,Development Growth and Regeneration,Publicity,A44266,
http://opendatacommunities.org/id/london-borough-council/sutton,London Borough of Sutton,07/07/2022,10008653,20.72, LINKEDIN-801 9810464,advertisment,Development Growth and Regeneration,Publicity,A44266,
http://opendatacommunities.org/id/london-borough-council/sutton,London Borough of Sutton,06/07/2022,10008653,7.00, FACEBK  CU5UFF7QD2,advertisment,Development Growth and Regeneration,Publicity,A44266,
http://opendatacommunities.org/id/london-borough-council/sutton,London Borough of Sutton,04/07/2022,10008653,0.30, OTTER.AI,advertisment,Development Growth and Regeneration,Publicity,A44266,
http://opendatacommunities.org/id/london-borough-council/sutton,London Borough of Sutton,01/07/2022,10008653,18.65, LINKEDIN 8005278394,advertisment,Development Growth and Regeneration,Publicity,A44266,
http://opendatacommunities.org/id/london-borough-council/sutton,London Borough of Sutton,21/07/2022,10008653,251.45, MAILCHIMP,SHP MAILCHIMP SUBSCRIPTION,Development Growth and Regeneration,Subscriptions,A47010,
http://opendatacommunities.org/id/london-borough-council/sutton,London Borough of Sutton,08/07/2022,10008653,60.17, WICKES SUTTON (MULTISI,PAINT AND PAINTING EQUIPMENT TO PAINT OVER GRAFFITI IN TIMES SQUARE CAR PARK,Environment Housing and Neighbourhoods,Miscellaneous Expenses,A49000,
http://opendatacommunities.org/id/london-borough-council/sutton,London Borough of Sutton,08/07/2022,10008653,-20.83, WICKES SUTTON (MULTISI,REFUND ON PAINT,Environment Housing and Neighbourhoods,Miscellaneous Expenses,A49000,
http://opendatacommunities.org/id/london-borough-council/sutton,London Borough of Sutton,13/07/2022,10008653,47.50, TESCO STORE 3235,AFGHAN RESETTLEMENT SCHEME,Environment Housing and Neighbourhoods,Other Supplies & Services,A44291,
http://opendatacommunities.org/id/london-borough-council/sutton,London Borough of Sutton,08/07/2022,10008653,150.00, APM,"APM MEMBERSHIP ANNUAL SUBSCRIPTION FOR ""REDACTED - PERSONAL DATA""",Environment Housing and Neighbourhoods,Subscriptions,A47010,
http://opendatacommunities.org/id/london-borough-council/sutton,London Borough of Sutton,20/07/2022,10008653,439.96, SP EXERSCI,EXERCISE MATTS PAYMENT,Peoples Services,Miscellaneous Expenses,A49000,
http://opendatacommunities.org/id/london-borough-council/sutton,London Borough of Sutton,22/07/2022,10008653,9.99, SUTTON SPORTS DIRECT,AK ACTIVITY,Peoples Services,Miscellaneous Expenses,A49000,
http://opendatacommunities.org/id/london-borough-council/sutton,London Borough of Sutton,14/07/2022,10008653,5.99, HOMELAND,AK FOOTBALL,Peoples Services,Miscellaneous Expenses,A49000,
http://opendatacommunities.org/id/london-borough-council/sutton,London Borough of Sutton,27/06/2022,10008653,21.00, THE WORKS,AK ACTIVITY,Peoples Services,Miscellaneous Expenses,A49000,
http://opendatacommunities.org/id/london-borough-council/sutton,London Borough of Sutton,25/07/2022,10008653,80.00, WWW.HOBBLEDOWN.COM,FARM TICKETS,Peoples Services,Miscellaneous Expenses,A49000,
http://opendatacommunities.org/id/london-borough-council/sutton,London Borough of Sutton,12/07/2022,10008653,149.00, WILKO.COM,WILKO ORDER,Peoples Services,Miscellaneous Expenses,A49000,
http://opendatacommunities.org/id/london-borough-council/sutton,London Borough of Sutton,22/07/2022,10008653,130.98, EASYJET,EASY JET FLIGHT,Peoples Services,C.C.A Travel & Subsistance,A61010,
http://opendatacommunities.org/id/london-borough-council/sutton,London Borough of Sutton,30/06/2022,10008653,258.95, ARGOS LTD,ARGOS ORDER,Peoples Services,Set Up Costs - Children Leaving Care,A61021,
http://opendatacommunities.org/id/london-borough-council/sutton,London Borough of Sutton,21/07/2022,10008653,28.50, WWW.CORAM.ORG.UK,CORAMBAAF,Peoples Services,Miscellaneous Expenses,A49000,
http://opendatacommunities.org/id/london-borough-council/sutton,London Borough of Sutton,20/07/2022,10008653,15.79, HOLLYWOOD BOWL,SUPERVISED CONTACT ACTIVITY,Peoples Services,Miscellaneous Expenses,A49000,
http://opendatacommunities.org/id/london-borough-council/sutton,London Borough of Sutton,07/07/2022,10008653,18.80, WWW.WIGHTLINK.CO.UK,FERRY TRIP,Peoples Services,C.C.A Travel & Subsistance,A61010,
http://opendatacommunities.org/id/london-borough-council/sutton,London Borough of Sutton,13/07/2022,10008653,10.00, NCS TRUST,NC PAYMENT FOR YOUNG PERSON,Peoples Services,Miscellaneous Expenses,A49000,
http://opendatacommunities.org/id/london-borough-council/sutton,London Borough of Sutton,12/07/2022,10008653,26.89, TENPIN.CO.UK,BOWLING PAYMENT,Peoples Services,Miscellaneous Expenses,A49000,
http://opendatacommunities.org/id/london-borough-council/sutton,London Borough of Sutton,13/07/2022,10008653,33.00, GO APE,GO APE,Peoples Services,Miscellaneous Expenses,A49000,
http://opendatacommunities.org/id/london-borough-council/sutton,London Borough of Sutton,18/07/2022,10008653,130.00, ARGOS LTD,BBQ & GAZEBO PAYMENT - ARGOS,Peoples Services,Miscellaneous Expenses,A49000,
http://opendatacommunities.org/id/london-borough-council/sutton,London Borough of Sutton,18/07/2022,10008653,56.00, SQ  NAVRTAR,NAVRTAR ACTIVITY PAYMENT,Peoples Services,Miscellaneous Expenses,A49000,
http://opendatacommunities.org/id/london-borough-council/sutton,London Borough of Sutton,15/07/2022,10008653,17.98, VUE ENTERTAINMENT LTD,CINEMA TICKETS PAYMENT,Peoples Services,Miscellaneous Expenses,A49000,
http://opendatacommunities.org/id/london-borough-council/sutton,London Borough of Sutton,14/07/2022,10008653,45.80, GRAVITY,GRAVITY - ACTIVITIES PAYMENT,Peoples Services,Miscellaneous Expenses,A49000,
http://opendatacommunities.org/id/london-borough-council/sutton,London Borough of Sutton,22/07/2022,10008653,9.00, GARSONS ESHER,BALANCING ENTRY AMOUNT (100%),Peoples Services,Miscellaneous Expenses,A49000,
http://opendatacommunities.org/id/london-borough-council/sutton,London Borough of Sutton,05/07/2022,10008653,12.49, AMZNMKTPLACE,ITEM FOR A YOUNG PERSON AT WILLOW RISE CHILDRENS HOME (100%),Peoples Services,Miscellaneous Expenses,A49000,
http://opendatacommunities.org/id/london-borough-council/sutton,London Borough of Sutton,05/07/2022,10008653,4.40, AMZNBUSINESS 2Y5ZK96X4,ITEM FOR A YOUNG PERSON AT WILLOW RISE CHILDRENS HOME (100%),Peoples Services,Miscellaneous Expenses,A49000,
http://opendatacommunities.org/id/london-borough-council/sutton,London Borough of Sutton,04/07/2022,10008653,6.98, AMZNMKTPLACE AMAZON.CO,ITEM FOR A YOUNG PERSON AT WILLOW RISE CHILDRENS HOME (100%),Peoples Services,Miscellaneous Expenses,A49000,
http://opendatacommunities.org/id/london-borough-council/sutton,London Borough of Sutton,08/07/2022,10008653,362.95, ARGOS LTD,PATIO SET PAYMENT - ARGOS,Peoples Services,Miscellaneous Expenses,A49000,
http://opendatacommunities.org/id/london-borough-council/sutton,London Borough of Sutton,04/07/2022,10008653,64.17, ASDA STORES LTD,FOOD SHOPPING REQUIRED FOR THE WILLOW RISE CHILDRENS HOME,Peoples Services,Miscellaneous Expenses,A49000,
http://opendatacommunities.org/id/london-borough-council/sutton,London Borough of Sutton,04/07/2022,10008653,20.89, AMZNMKTPLACE,ITEM FOR A YOUNG PERSON AT WILLOW RISE CHILDRENS HOME (52.38%),Peoples Services,Miscellaneous Expenses,A49000,
http://opendatacommunities.org/id/london-borough-council/sutton,London Borough of Sutton,04/07/2022,10008653,18.99, AMZNMKTPLACE,ITEM FOR A YOUNG PERSON AT WILLOW RISE CHILDRENS HOME (47.62%),Peoples Services,Miscellaneous Expenses,A49000,
http://opendatacommunities.org/id/london-borough-council/sutton,London Borough of Sutton,04/07/2022,10008653,9.49, AMZNMKTPLACE,ITEM FOR A YOUNG PERSON AT WILLOW RISE CHILDRENS HOME (100%),Peoples Services,Miscellaneous Expenses,A49000,
http://opendatacommunities.org/id/london-borough-council/sutton,London Borough of Sutton,20/07/2022,10008653,7.99, AMZNMKTPLACE,"SPLIT - POST-IT SUPER STICKY NOTES CARNIVAL COLOR COLLECTION, PACK OF 6 PADS, 90 SHEETS PER PAD, 76 MM X 76 MM, YELLOW, BLUE, GREEN COLORS - EXTRA STICKY NOTE (100%)",Peoples Services,Miscellaneous Expenses,A49000,
http://opendatacommunities.org/id/london-borough-council/sutton,London Borough of Sutton,20/07/2022,10008653,19.20, ARGOS LTD,SPRINKLER PAYMENT - ARGOS,Peoples Services,Miscellaneous Expenses,A49000,
http://opendatacommunities.org/id/london-borough-council/sutton,London Borough of Sutton,19/07/2022,10008653,17.99, AURA ONLINE LTD,LOCK & KEY PAYMENT,Peoples Services,Miscellaneous Expenses,A49000,
http://opendatacommunities.org/id/london-borough-council/sutton,London Borough of Sutton,19/07/2022,10008653,192.11, COSTCO ONLINE UK LIMIT,COSTCO SHOPPING PAYMENT,Peoples Services,Miscellaneous Expenses,A49000,
http://opendatacommunities.org/id/london-borough-council/sutton,London Borough of Sutton,19/07/2022,10008653,84.60, WWW.OXYGENFREEJUMPING.,OXYGEN FREE JUMPING ACTIVITY PAYMENT,Peoples Services,Miscellaneous Expenses,A49000,
http://opendatacommunities.org/id/london-borough-council/sutton,London Borough of Sutton,21/07/2022,10008653,34.99, AMZNMKTPLACE,"SPLIT - LIVIVO ELECTRIC 16"" PEDESTAL FAN - POWERFUL FREE STANDING OSCILLATING AND TILTING HEIGHT ADJUSTABLE STAND - 3 SPEED SETTINGS, OSCILLATION MODE AND MES (100%)",Peoples Services,Miscellaneous Expenses,A49000,
http://opendatacommunities.org/id/london-borough-council/sutton,London Borough of Sutton,04/07/2022,10008653,11.99, AMZNMKTPLACE AMAZON.CO,ITEM NEEDED FOR A YOUNG PERSON (100%),Peoples Services,Miscellaneous Expenses,A49000,
http://opendatacommunities.org/id/london-borough-council/sutton,London Borough of Sutton,30/06/2022,10008653,159.90, ZOOM.US 888-799-9666,SUBSCRIPTION FOR A ZOOM ACCOUNT,Peoples Services,Subscriptions,A47010,
http://opendatacommunities.org/id/london-borough-council/sutton,London Borough of Sutton,17/07/2022,10008653,159.90, ZOOM.US 888-799-9666,SUBSCRIPTION REQUIRED BY THE TEAM,Peoples Services,Subscriptions,A47010,
http://opendatacommunities.org/id/london-borough-council/sutton,London Borough of Sutton,04/07/2022,10008653,11.00, SURREY CC CARD PAY,SURREY BIRTH CERTIFICATE PAYMENT,Peoples Services,Equipment And Materials Purchase,A40000,
http://opendatacommunities.org/id/london-borough-council/sutton,London Borough of Sutton,30/06/2022,10008653,6.85, POST OFFICE COUNTER,PASSPORT POSTAGE PAYMENT,Peoples Services,Equipment And Materials Purchase,A40000,
http://opendatacommunities.org/id/london-borough-council/sutton,London Borough of Sutton,30/06/2022,10008653,106.00, POST OFFICE COUNTER,PASSPORT CHECK & SEND POST OFFICE PAYMENT,Peoples Services,Equipment And Materials Purchase,A40000,
http://opendatacommunities.org/id/london-borough-council/sutton,London Borough of Sutton,29/06/2022,10008653,129.25, WWW.WIGHTLINK.CO.UK,FERRY PAYMENT,Peoples Services,Non-Staff Travel Subsistence & Training,A46006,
http://opendatacommunities.org/id/london-borough-council/sutton,London Borough of Sutton,21/07/2022,10008653,184.75, COME AND PLAY CHILDCAR,CHILDCARE,Peoples Services,Miscellaneous Expenses,A49000,
http://opendatacommunities.org/id/london-borough-council/sutton,London Borough of Sutton,04/07/2022,10008653,58.50, HM PASSPORT OFFICE,PASSPORT APPLICATION PAYMENT,Peoples Services,Client Care/Assistance,A61011,
http://opendatacommunities.org/id/london-borough-council/sutton,London Borough of Sutton,06/07/2022,10008653,559.62, HOTEL AT BOOKING.COM,HOTEL PAYMENT,Peoples Services,Client Care/Assistance,A61011,
http://opendatacommunities.org/id/london-borough-council/sutton,London Borough of Sutton,08/07/2022,10008653,221.64, AMZNMKTPLACE,SPLIT - SUNMER 2.7M GREY PARASOL GARDEN UMBRELLA SUN SHADING | WATER REPELLENT POLYESTER 180 G/M� (UV 30+)| EASY TO OPEN AND CLOSE CRANK MECHANISM | POLE WID (100%),Peoples Services,Equipment And Materials Purchase,A40000,
http://opendatacommunities.org/id/london-borough-council/sutton,London Borough of Sutton,11/07/2022,10008653,44.50, TESCO STORES 5999,TESCO ORDER,Peoples Services,Equipment And Materials Purchase,A40000,
http://opendatacommunities.org/id/london-borough-council/sutton,London Borough of Sutton,10/07/2022,10008653,46.62, AMZNMKTPLACE,"SPLIT - EAST COAST NURSERY LTD CHANGING MAT GREY STARS, MULTI, (PACK OF 1) (100%)",Peoples Services,Equipment And Materials Purchase,A40000,
http://opendatacommunities.org/id/london-borough-council/sutton,London Borough of Sutton,10/07/2022,10008653,121.24, AMZNMKTPLACE,SPLIT - OUTSUNNY 4.6M GARDEN PARASOL DOUBLE-SIDED SUN UMBRELLA PATIO MARKET SHELTER CANOPY SHADE OUTDOOR WITH CROSS BASE - DARK GREEN (100%),Peoples Services,Equipment And Materials Purchase,A40000,
http://opendatacommunities.org/id/london-borough-council/sutton,London Borough of Sutton,10/07/2022,10008653,11.64, AMZNMKTPLACE,"SPLIT - GALT TOYS, WASHABLE PVA GLUE - 500 ML, GLUE FOR KIDS ART & CRAFTS, AGES 3 YEARS PLUS (100%)",Peoples Services,Equipment And Materials Purchase,A40000,
http://opendatacommunities.org/id/london-borough-council/sutton,London Borough of Sutton,10/07/2022,10008653,9.14, AMZNMKTPLACE,"SPLIT - DDUO PORTABLE BALL PUMP,AIR PUMP INFLATOR KIT WITH NEEDLE,NOZZLE, EXTENSION HOSE HAND PUMPS FOR BASKETBALL FOOTBALL VOLLEYBALL WATER POLO RUGBY EXERCI (100%)",Peoples Services,Equipment And Materials Purchase,A40000,
http://opendatacommunities.org/id/london-borough-council/sutton,London Borough of Sutton,10/07/2022,10008653,19.37, AMZNMKTPLACE,"SPLIT - SCOLA ARTMIX READYMIX PAINT, 12 X 600ML, PACK OF 12 (100%)",Peoples Services,Equipment And Materials Purchase,A40000,
http://opendatacommunities.org/id/london-borough-council/sutton,London Borough of Sutton,10/07/2022,10008653,11.66, AMZNMKTPLACE,"SPLIT - SIGNATURE S40008B PORTABLE 9 INCH OSCILLATING DESK FAN WITH ADJUSTABLE TILT, 3 PLASTIC BLADES, 2 SPEED SETTINGS, BLACK (100%)",Peoples Services,Equipment And Materials Purchase,A40000,
http://opendatacommunities.org/id/london-borough-council/sutton,London Borough of Sutton,10/07/2022,10008653,34.98, AMZNMKTPLACE,"SPLIT - SIGNATURE S40008B PORTABLE 9 INCH OSCILLATING DESK FAN WITH ADJUSTABLE TILT, 3 PLASTIC BLADES, 2 SPEED SETTINGS, BLACK (100%)",Peoples Services,Equipment And Materials Purchase,A40000,
http://opendatacommunities.org/id/london-borough-council/sutton,London Borough of Sutton,28/06/2022,10008653,35.42, WALLINGTON CARS & COUR,TRAVEL NEEDED FOR A CLIENT,Peoples Services,Contribution To/From Supplies And Services Provision,A48003,
http://opendatacommunities.org/id/london-borough-council/sutton,London Borough of Sutton,04/07/2022,10008653,35.90, WWW.EARLYYEARSRESOURCE,ITEMS REQUIRED BY THE SOCIAL WORKER,Peoples Services,Miscellaneous Expenses,A49000,
http://opendatacommunities.org/id/london-borough-council/sutton,London Borough of Sutton,04/07/2022,10008653,54.92, PACT RESOURCES,ITEMS REQUIRED BY THE SOCIAL WORKER,Peoples Services,Miscellaneous Expenses,A49000,
http://opendatacommunities.org/id/london-borough-council/sutton,London Borough of Sutton,25/07/2022,10008653,815.68, TRAVELODGE,HOTEL STAY,Peoples Services,C.C.A Travel & Subsistance,A61010,
http://opendatacommunities.org/id/london-borough-council/sutton,London Borough of Sutton,28/06/2022,10008653,288.33, TRAVELODGE,HOTEL REQUIRED FOR A STAY FOR A SOCIAL WORKER,Peoples Services,Client Care/Assistance,A61011,
http://opendatacommunities.org/id/london-borough-council/sutton,London Borough of Sutton,11/07/2022,10008653,"3,199.00", C2E822800281V UKVI,SOCIAL WORKERS IMMIGRATION APPLICATIONS,Peoples Services,Client Care/Assistance,A61011,
http://opendatacommunities.org/id/london-borough-council/sutton,London Borough of Sutton,01/07/2022,10008653,711.00, THE GATWICK WHITE HOUS,HOTEL PAYMENT,Peoples Services,Client Care/Assistance,A61011,
http://opendatacommunities.org/id/london-borough-council/sutton,London Borough of Sutton,20/07/2022,10008653,70.00, FACEBK  K64BHE7H32,FACEBOOK ADVERTISING FOR FOSTERING RECRUITMENT,Peoples Services,Recruitment Expenses,A15026,
http://opendatacommunities.org/id/london-borough-council/sutton,London Borough of Sutton,02/07/2022,10008653,110.01, ASDA GROCERIES ONLINE,REFRESHMENTS FOR FOSTERING TEAM SUMMER BARBECUE (EVENT FOR FOSTER CARERS),Peoples Services,Fostering Allowances,A56008,
http://opendatacommunities.org/id/london-borough-council/sutton,London Borough of Sutton,02/07/2022,10008653,-12.20, ASDA GROCERIES ONLINE,REFUND FROM ASDA GROCERIES AS SOME ITEMS ORDERED NOT AVAILABLE,Peoples Services,Fostering Allowances,A56008,
http://opendatacommunities.org/id/london-borough-council/sutton,London Borough of Sutton,22/07/2022,10008653,35.00, MARKS&SPENCER PLC,REFRESHMENTS FOR SKILLS TO FOSTER TRAINING COURSE,Peoples Services,Fostering Allowances,A56008,
http://opendatacommunities.org/id/london-borough-council/sutton,London Borough of Sutton,22/07/2022,10008653,35.00, MARKS&SPENCER PLC,REFRESHMENTS FOR SKILLS TO FOSTER TRAINING COURSE,Peoples Services,Fostering Allowances,A56008,
http://opendatacommunities.org/id/london-borough-council/sutton,London Borough of Sutton,22/07/2022,10008653,35.00, MARKS&SPENCER PLC,REFRESHMENTS FOR SKILLS TO FOSTER TRAINING COURSE,Peoples Services,Fostering Allowances,A56008,
http://opendatacommunities.org/id/london-borough-council/sutton,London Borough of Sutton,07/07/2022,10008653,305.00, BVS TRAINING LTD,TRAINING RESOURCES - FIRE SAFETY,Peoples Services,Equipment And Materials Purchase,A40000,
http://opendatacommunities.org/id/london-borough-council/sutton,London Borough of Sutton,29/06/2022,10008653,152.77, HOLIDAY INNS,ACCOMODATION FOR LSCP CHAIR,Peoples Services,Professional Fees,A44066,
http://opendatacommunities.org/id/london-borough-council/sutton,London Borough of Sutton,29/06/2022,10008653,8.54, WM MORRISONS STORE,FLOWERS AND CARD FOR LEAVER,Peoples Services,Miscellaneous Expenses,A49000,
http://opendatacommunities.org/id/london-borough-council/sutton,London Borough of Sutton,10/07/2022,10008653,7.46, AMZNMKTPLACE,SPLIT - DIVCHI BABY DISPOSABLE DIAPER SACKS BAGS DISPENSER ANTIBACTERIAL POWER SCENTED NAPPY DISPOSAL BAGS EASY-TIE FOR TRAVEL - 4 X 200 PACK (800 IN TOTAL) (100%),Peoples Services,Equipment And Materials Purchase,A40000,
http://opendatacommunities.org/id/london-borough-council/sutton,London Borough of Sutton,12/07/2022,10008653,120.70, AMZNMKTPLACE,SPLIT - ABEEC 100 FELT TIP PENS - SET OF 100 ASSORTED FELT TIPS FOR KIDS 3+ - 20 DIFFERENT COLOURED PENS IN A BOX - COLOURING SET FOR ARTS AND CRAFTS SUPPLIES (100%),Peoples Services,Equipment And Materials Purchase,A40000,
http://opendatacommunities.org/id/london-borough-council/sutton,London Borough of Sutton,04/07/2022,10008653,450.00, HOLY CROSS HOSPITAL,POSTURE MANAGEMENT 4 DAY COURSE FOR SARAH HILLS - 3-6TH OCTOBER 2022,Peoples Services,Staff Development And Training,A15022,
http://opendatacommunities.org/id/london-borough-council/sutton,London Borough of Sutton,12/07/2022,10008653,407.95, TRAVELODGE,HOTEL PAYMENT,Peoples Services,Client Care/Assistance,A61011,
http://opendatacommunities.org/id/london-borough-council/sutton,London Borough of Sutton,13/07/2022,10008653,-180.98, TRAVELODGE,HOTEL PAYMENT REFUND,Peoples Services,Client Care/Assistance,A61011,
http://opendatacommunities.org/id/london-borough-council/sutton,London Borough of Sutton,13/07/2022,10008653,-218.98, TRAVELODGE,HOTEL PAYMENT REFUND,Peoples Services,Client Care/Assistance,A61011,
http://opendatacommunities.org/id/london-borough-council/sutton,London Borough of Sutton,13/07/2022,10008653,478.00, PREMIER INN,HOTEL PAYMENT,Peoples Services,Client Care/Assistance,A61011,
http://opendatacommunities.org/id/london-borough-council/sutton,London Borough of Sutton,04/07/2022,10008653,4.00, AMZNMKTPLACE,ITEM NEEDED FOR A CLIENT A49000 G03810 9999 AMAZON (100%),Peoples Services,Miscellaneous Expenses,A49000,
http://opendatacommunities.org/id/london-borough-council/sutton,London Borough of Sutton,04/07/2022,10008653,9.90, AMZNMKTPLACE,ITEMS REQUESTED BY THE SOCIAL WORKER (17.8%),Peoples Services,Miscellaneous Expenses,A49000,
http://opendatacommunities.org/id/london-borough-council/sutton,London Borough of Sutton,04/07/2022,10008653,13.83, AMZNMKTPLACE,SPLIT - LEARNING RESOURCES CONVERSATION CUBES (24.86%),Peoples Services,Miscellaneous Expenses,A49000,
http://opendatacommunities.org/id/london-borough-council/sutton,London Borough of Sutton,04/07/2022,10008653,31.90, AMZNMKTPLACE,"SPLIT - MINILAND 27395 EUROPEAN FAMILY 8 FIGURES, MULTI-COLOR (57.34%)",Peoples Services,Miscellaneous Expenses,A49000,
http://opendatacommunities.org/id/london-borough-council/sutton,London Borough of Sutton,04/07/2022,10008653,7.99, AMZNMKTPLACE,ITEM NEEDED FOR A CLIENT (100%),Peoples Services,Miscellaneous Expenses,A49000,
http://opendatacommunities.org/id/london-borough-council/sutton,London Borough of Sutton,06/07/2022,10008653,14.29, AMZNMKTPLACE,ITEMS REQUESTED BY THE SOCIAL WORKER (89.59%),Peoples Services,Miscellaneous Expenses,A49000,
http://opendatacommunities.org/id/london-borough-council/sutton,London Borough of Sutton,06/07/2022,10008653,1.66, AMZNMKTPLACE,BALANCING ENTRY AMOUNT (10.41%),Peoples Services,Miscellaneous Expenses,A49000,
http://opendatacommunities.org/id/london-borough-council/sutton,London Borough of Sutton,05/07/2022,10008653,14.99, AMZNMKTPLACE,ITEMS REQUESTED BY THE SOCIAL WORKER A49000 G03810 9999 AMAZON (100%),Peoples Services,Miscellaneous Expenses,A49000,
http://opendatacommunities.org/id/london-borough-council/sutton,London Borough of Sutton,05/07/2022,10008653,10.10, AMZNMKTPLACE,ITEM REQUESTED BY THE SOCIAL WORKER (80.22%),Peoples Services,Miscellaneous Expenses,A49000,
http://opendatacommunities.org/id/london-borough-council/sutton,London Borough of Sutton,05/07/2022,10008653,2.49, AMZNMKTPLACE,BALANCING ENTRY AMOUNT (19.78%),Peoples Services,Miscellaneous Expenses,A49000,
http://opendatacommunities.org/id/london-borough-council/sutton,London Borough of Sutton,04/07/2022,10008653,8.99, AMZNMKTPLACE,ITEMS REQUESTED BY THE SOCIAL WORKER   A49000 G03810 9999 AMAZON (40.9%),Peoples Services,Miscellaneous Expenses,A49000,
http://opendatacommunities.org/id/london-borough-council/sutton,London Borough of Sutton,04/07/2022,10008653,12.99, AMZNMKTPLACE,SPLIT - WOODEN NESTING DOLLS CARTOON CUTE ANIMALS ANGEL PATTERN RUSSIAN MATRYOSHKA STACKING DOLLS CHILDREN KIDS TOY GIFT DECORATION (ANIMALS) (59.1%),Peoples Services,Miscellaneous Expenses,A49000,
http://opendatacommunities.org/id/london-borough-council/sutton,London Borough of Sutton,11/07/2022,10008653,72.00, WALLINGTON CARS & COUR,TAXI,Peoples Services,C.C.A Travel & Subsistance,A61010,
http://opendatacommunities.org/id/london-borough-council/sutton,London Borough of Sutton,07/07/2022,10008653,36.00, WALLINGTON CARS & COUR,CAB/TRANSPORT PAYMENT,Peoples Services,C.C.A Travel & Subsistance,A61010,
http://opendatacommunities.org/id/london-borough-council/sutton,London Borough of Sutton,04/07/2022,10008653,794.50, TRAVELODGE,HOTEL PAYMENT,Peoples Services,Client Care/Assistance,A61011,
http://opendatacommunities.org/id/london-borough-council/sutton,London Borough of Sutton,25/07/2022,10008653,437.53, TRAVELODGE,HOTEL STAY,Peoples Services,C.C.A Travel & Subsistance,A61010,
http://opendatacommunities.org/id/london-borough-council/sutton,London Borough of Sutton,12/07/2022,10008653,636.42, TRAVELODGE,HOTEL PAYMENT,Peoples Services,Client Care/Assistance,A61011,
http://opendatacommunities.org/id/london-borough-council/sutton,London Borough of Sutton,14/07/2022,10008653,459.96, TRAVELODGE,HOTEL PAYMENT,Peoples Services,Client Care/Assistance,A61011,
http://opendatacommunities.org/id/london-borough-council/sutton,London Borough of Sutton,13/07/2022,10008653,12.50, WALLINGTON CARS & COUR,CAB/TRANSPORT PAYMENT,Peoples Services,C.C.A Travel & Subsistance,A61010,
http://opendatacommunities.org/id/london-borough-council/sutton,London Borough of Sutton,18/07/2022,10008653,846.78, TRAVELODGE,HOTEL PAYMENT,Peoples Services,Client Care/Assistance,A61011,
http://opendatacommunities.org/id/london-borough-council/sutton,London Borough of Sutton,11/07/2022,10008653,810.06, TRAVELODGE,HOTEL PAYMENT,Peoples Services,Client Care/Assistance,A61011,
http://opendatacommunities.org/id/london-borough-council/sutton,London Borough of Sutton,05/07/2022,10008653,228.96, TRAVELODGE,HOTEL PAYMENT,Peoples Services,Client Care/Assistance,A61011,
http://opendatacommunities.org/id/london-borough-council/sutton,London Borough of Sutton,06/07/2022,10008653,602.51, TRAVELODGE,HOTEL PAYMENT,Peoples Services,Client Care/Assistance,A61011,
http://opendatacommunities.org/id/london-borough-council/sutton,London Borough of Sutton,04/07/2022,10008653,108.50, PREMIER INN,HOTEL REQUIRED FOR A CLIENT,Peoples Services,Client Care/Assistance,A61011,
http://opendatacommunities.org/id/london-borough-council/sutton,London Borough of Sutton,15/07/2022,10008653,210.00, CORERFID LTD,IT miscellaneous,Peoples Services,Equipment And Materials Purchase,A40000,
http://opendatacommunities.org/id/london-borough-council/sutton,London Borough of Sutton,20/07/2022,10008653,11.00, SUTTON REGISTER OFFICE,"DEATH CERT FOR ""REDACTED - PERSONAL DATA""",Peoples Services,Funeral Expenses,A44220,
http://opendatacommunities.org/id/london-borough-council/sutton,London Borough of Sutton,13/07/2022,10008653,160.00, ARGOS LTD,ARGOS ORDER,Peoples Services,Equipment And Materials Purchase,A40000,
http://opendatacommunities.org/id/london-borough-council/sutton,London Borough of Sutton,04/07/2022,10008653,62.75, ALZHEIMER'S SOCIETY,ALZHEIMER'S SOCIETY DONATION BANKED,Corporate Balance Sheet,Sutton College,B32183,
http://opendatacommunities.org/id/london-borough-council/sutton,London Borough of Sutton,20/07/2022,10008653,16.30, MARKS&SPENCER PLC SACA,GOVERNING BODY FLOWERS ROSEMARY ORAM,Health and Wellbeing,Hospitality,A46020,
http://opendatacommunities.org/id/london-borough-council/sutton,London Borough of Sutton,01/07/2022,10008653,42.75, GSUITE_SUTTONCOLLEGE.A,GOOGLE CLOUD EMEA LIMITED 4209109562,Health and Wellbeing,Subscriptions,A47010,
http://opendatacommunities.org/id/london-borough-council/sutton,London Borough of Sutton,21/07/2022,10008653,500.00, FACEBK  Y892FD76A2,FACEBOOK AD 210722 500.00,Health and Wellbeing,Publicity,A44266,
http://opendatacommunities.org/id/london-borough-council/sutton,London Borough of Sutton,13/07/2022,10008653,"1,127.00", INSTANTPRINT.CO.UK,INSTANTPRINT 130722 POSTERS & EXTRA COURSE GUIDES 1127,Health and Wellbeing,Publicity,A44266,
http://opendatacommunities.org/id/london-borough-council/sutton,London Borough of Sutton,07/07/2022,10008653,47.99, ADOBE STOCK,ADOBE JULY 47.99,Health and Wellbeing,Publicity,A44266,
http://opendatacommunities.org/id/london-borough-council/sutton,London Borough of Sutton,01/07/2022,10008653,140.32, FACEBK  5AUY5DF6A2,FACEBOOK AD 010722 140.32,Health and Wellbeing,Publicity,A44266,
http://opendatacommunities.org/id/london-borough-council/sutton,London Borough of Sutton,30/06/2022,10008653,81.58, MAILCHIMP,MAILCHIMP 300622 81.58,Health and Wellbeing,Publicity,A44266,
http://opendatacommunities.org/id/london-borough-council/sutton,London Borough of Sutton,08/07/2022,10008653,10.21, ICELAND,FOOD ITEMS FOR AWARDS EVENING,Health and Wellbeing,Publicity,A44266,
http://opendatacommunities.org/id/london-borough-council/sutton,London Borough of Sutton,08/07/2022,10008653,28.34, SAINSBURYS SUPERMA,FOOD AND DRINK ITEMS FOR END OF YEAR AWARDS EVENING,Health and Wellbeing,Publicity,A44266,
http://opendatacommunities.org/id/london-borough-council/sutton,London Borough of Sutton,21/07/2022,10008653,6.99, AMAZON.CO.UK 622CN6OH5,SPLIT - THE LION ABOVE THE DOOR (141.78%),Peoples Services,LAC - Education,A44280,
http://opendatacommunities.org/id/london-borough-council/sutton,London Borough of Sutton,21/07/2022,10008653,-2.06, AMAZON.CO.UK 622CN6OH5,BALANCING ENTRY AMOUNT (-125.34%),Peoples Services,LAC - Education,A44280,
http://opendatacommunities.org/id/london-borough-council/sutton,London Borough of Sutton,21/07/2022,10008653,6.99, AMAZON.CO.UK JW8CB1XY5,SPLIT - THE LION ABOVE THE DOOR (141.78%),Peoples Services,LAC - Education,A44280,
http://opendatacommunities.org/id/london-borough-council/sutton,London Borough of Sutton,21/07/2022,10008653,-2.06, AMAZON.CO.UK JW8CB1XY5,BALANCING ENTRY AMOUNT (-125.34%),Peoples Services,LAC - Education,A44280,
http://opendatacommunities.org/id/london-borough-council/sutton,London Borough of Sutton,21/07/2022,10008653,6.99, AMAZON.CO.UK 5U52B7405,SPLIT - THE LION ABOVE THE DOOR (141.78%),Peoples Services,LAC - Education,A44280,
http://opendatacommunities.org/id/london-borough-council/sutton,London Borough of Sutton,21/07/2022,10008653,-2.06, AMAZON.CO.UK 5U52B7405,BALANCING ENTRY AMOUNT (-125.34%),Peoples Services,LAC - Education,A44280,
http://opendatacommunities.org/id/london-borough-council/sutton,London Borough of Sutton,21/07/2022,10008653,6.99, AMAZON.CO.UK P16Q049O5,SPLIT - THE LION ABOVE THE DOOR (141.5%),Peoples Services,LAC - Education,A44280,
http://opendatacommunities.org/id/london-borough-council/sutton,London Borough of Sutton,21/07/2022,10008653,-2.05, AMAZON.CO.UK P16Q049O5,BALANCING ENTRY AMOUNT (-124.5%),Peoples Services,LAC - Education,A44280,
http://opendatacommunities.org/id/london-borough-council/sutton,London Borough of Sutton,21/07/2022,10008653,6.99, AMAZON.CO.UK M440F8AF5,SPLIT - THE LION ABOVE THE DOOR (141.78%),Peoples Services,LAC - Education,A44280,
http://opendatacommunities.org/id/london-borough-council/sutton,London Borough of Sutton,21/07/2022,10008653,-2.06, AMAZON.CO.UK M440F8AF5,BALANCING ENTRY AMOUNT (-125.34%),Peoples Services,LAC - Education,A44280,
http://opendatacommunities.org/id/london-borough-council/sutton,London Borough of Sutton,21/07/2022,10008653,6.99, AMAZON.CO.UK TW05F1LK5,SPLIT - THE LION ABOVE THE DOOR (141.78%),Peoples Services,LAC - Education,A44280,
http://opendatacommunities.org/id/london-borough-council/sutton,London Borough of Sutton,21/07/2022,10008653,-2.06, AMAZON.CO.UK TW05F1LK5,BALANCING ENTRY AMOUNT (-125.34%),Peoples Services,LAC - Education,A44280,
http://opendatacommunities.org/id/london-borough-council/sutton,London Borough of Sutton,21/07/2022,10008653,6.99, AMAZON.CO.UK AY2J06GL5,SPLIT - THE LION ABOVE THE DOOR (141.78%),Peoples Services,LAC - Education,A44280,
http://opendatacommunities.org/id/london-borough-council/sutton,London Borough of Sutton,21/07/2022,10008653,-2.06, AMAZON.CO.UK AY2J06GL5,BALANCING ENTRY AMOUNT (-125.34%),Peoples Services,LAC - Education,A44280,
http://opendatacommunities.org/id/london-borough-council/sutton,London Borough of Sutton,21/07/2022,10008653,6.99, AMAZON.CO.UK O876H9UB5,SPLIT - THE LION ABOVE THE DOOR (141.78%),Peoples Services,LAC - Education,A44280,
http://opendatacommunities.org/id/london-borough-council/sutton,London Borough of Sutton,21/07/2022,10008653,-2.06, AMAZON.CO.UK O876H9UB5,BALANCING ENTRY AMOUNT (-125.34%),Peoples Services,LAC - Education,A44280,
http://opendatacommunities.org/id/london-borough-council/sutton,London Borough of Sutton,21/07/2022,10008653,6.99, AMAZON.CO.UK HO3HL93D5,SPLIT - THE LION ABOVE THE DOOR (141.78%),Peoples Services,LAC - Education,A44280,
http://opendatacommunities.org/id/london-borough-council/sutton,London Borough of Sutton,21/07/2022,10008653,-2.06, AMAZON.CO.UK HO3HL93D5,BALANCING ENTRY AMOUNT (-125.34%),Peoples Services,LAC - Education,A44280,
http://opendatacommunities.org/id/london-borough-council/sutton,London Borough of Sutton,24/07/2022,10008653,-0.33, AMAZON.CO.UK KW4P14CG5,BALANCING ENTRY AMOUNT (-15.93%),Peoples Services,LAC - Education,A44280,
http://opendatacommunities.org/id/london-borough-council/sutton,London Borough of Sutton,24/07/2022,10008653,6.55, AMAZON.CO.UK ZB1W75YH5,SPLIT - FIGHT BACK (105.31%),Peoples Services,LAC - Education,A44280,
http://opendatacommunities.org/id/london-borough-council/sutton,London Borough of Sutton,24/07/2022,10008653,-0.33, AMAZON.CO.UK ZB1W75YH5,BALANCING ENTRY AMOUNT (-15.93%),Peoples Services,LAC - Education,A44280,
http://opendatacommunities.org/id/london-borough-council/sutton,London Borough of Sutton,24/07/2022,10008653,6.55, AMAZON.CO.UK SR93E58E5,SPLIT - FIGHT BACK (105.14%),Peoples Services,LAC - Education,A44280,
http://opendatacommunities.org/id/london-borough-council/sutton,London Borough of Sutton,24/07/2022,10008653,-0.32, AMAZON.CO.UK SR93E58E5,BALANCING ENTRY AMOUNT (-15.42%),Peoples Services,LAC - Education,A44280,
http://opendatacommunities.org/id/london-borough-council/sutton,London Borough of Sutton,24/07/2022,10008653,6.55, AMAZON.CO.UK HL02U8PM5,SPLIT - FIGHT BACK (105.31%),Peoples Services,LAC - Education,A44280,
http://opendatacommunities.org/id/london-borough-council/sutton,London Borough of Sutton,24/07/2022,10008653,-0.33, AMAZON.CO.UK HL02U8PM5,BALANCING ENTRY AMOUNT (-15.93%),Peoples Services,LAC - Education,A44280,
http://opendatacommunities.org/id/london-borough-council/sutton,London Borough of Sutton,24/07/2022,10008653,6.55, AMAZON.CO.UK 7X78U4QO5,SPLIT - FIGHT BACK (105.14%),Peoples Services,LAC - Education,A44280,
http://opendatacommunities.org/id/london-borough-council/sutton,London Borough of Sutton,24/07/2022,10008653,-0.32, AMAZON.CO.UK 7X78U4QO5,BALANCING ENTRY AMOUNT (-15.42%),Peoples Services,LAC - Education,A44280,
http://opendatacommunities.org/id/london-borough-council/sutton,London Borough of Sutton,23/07/2022,10008653,6.55, AMAZON.CO.UK FS49T3655,SPLIT - FIGHT BACK (105.31%),Peoples Services,LAC - Education,A44280,
http://opendatacommunities.org/id/london-borough-council/sutton,London Borough of Sutton,23/07/2022,10008653,-0.33, AMAZON.CO.UK FS49T3655,BALANCING ENTRY AMOUNT (-15.93%),Peoples Services,LAC - Education,A44280,
http://opendatacommunities.org/id/london-borough-council/sutton,London Borough of Sutton,23/07/2022,10008653,6.55, AMAZON.CO.UK 223KB9CD5,SPLIT - FIGHT BACK (105.31%),Peoples Services,LAC - Education,A44280,
http://opendatacommunities.org/id/london-borough-council/sutton,London Borough of Sutton,23/07/2022,10008653,-0.33, AMAZON.CO.UK 223KB9CD5,BALANCING ENTRY AMOUNT (-15.93%),Peoples Services,LAC - Education,A44280,
http://opendatacommunities.org/id/london-borough-council/sutton,London Borough of Sutton,23/07/2022,10008653,6.55, AMAZON.CO.UK 8S2XM9WA5,SPLIT - FIGHT BACK (105.31%),Peoples Services,LAC - Education,A44280,
http://opendatacommunities.org/id/london-borough-council/sutton,London Borough of Sutton,23/07/2022,10008653,-0.33, AMAZON.CO.UK 8S2XM9WA5,BALANCING ENTRY AMOUNT (-15.93%),Peoples Services,LAC - Education,A44280,
http://opendatacommunities.org/id/london-borough-council/sutton,London Borough of Sutton,23/07/2022,10008653,6.55, AMAZON.CO.UK MY1CO3DU5,SPLIT - FIGHT BACK (105.31%),Peoples Services,LAC - Education,A44280,
http://opendatacommunities.org/id/london-borough-council/sutton,London Borough of Sutton,23/07/2022,10008653,-0.33, AMAZON.CO.UK MY1CO3DU5,BALANCING ENTRY AMOUNT (-15.93%),Peoples Services,LAC - Education,A44280,
http://opendatacommunities.org/id/london-borough-council/sutton,London Borough of Sutton,23/07/2022,10008653,6.55, AMAZON.CO.UK YX7VP8X65,SPLIT - FIGHT BACK (105.31%),Peoples Services,LAC - Education,A44280,
http://opendatacommunities.org/id/london-borough-council/sutton,London Borough of Sutton,25/07/2022,10008653,-14.58, AMZ FIBRELOK PRODUCTS,SPLIT - WIRE PRODUCTS PACK 10 GALVANISED STEEL J PINS RIBBED 300MM X 10MM METAL PEGS CAMPING AWNING MARQUEE (100%),Peoples Services,LAC - Education,A44280,
http://opendatacommunities.org/id/london-borough-council/sutton,London Borough of Sutton,24/07/2022,10008653,6.55, AMAZON.CO.UK ZK42F7EI5,SPLIT - FIGHT BACK (105.14%),Peoples Services,LAC - Education,A44280,
http://opendatacommunities.org/id/london-borough-council/sutton,London Borough of Sutton,24/07/2022,10008653,-0.32, AMAZON.CO.UK ZK42F7EI5,BALANCING ENTRY AMOUNT (-15.42%),Peoples Services,LAC - Education,A44280,
http://opendatacommunities.org/id/london-borough-council/sutton,London Borough of Sutton,24/07/2022,10008653,6.55, AMAZON.CO.UK 8W5ZX9CI5,SPLIT - FIGHT BACK (105.31%),Peoples Services,LAC - Education,A44280,
http://opendatacommunities.org/id/london-borough-council/sutton,London Borough of Sutton,24/07/2022,10008653,-0.33, AMAZON.CO.UK 8W5ZX9CI5,BALANCING ENTRY AMOUNT (-15.93%),Peoples Services,LAC - Education,A44280,
http://opendatacommunities.org/id/london-borough-council/sutton,London Borough of Sutton,24/07/2022,10008653,6.55, AMAZON.CO.UK KI5CV9LJ5,SPLIT - FIGHT BACK (105.31%),Peoples Services,LAC - Education,A44280,
http://opendatacommunities.org/id/london-borough-council/sutton,London Borough of Sutton,24/07/2022,10008653,-0.33, AMAZON.CO.UK KI5CV9LJ5,BALANCING ENTRY AMOUNT (-15.93%),Peoples Services,LAC - Education,A44280,
http://opendatacommunities.org/id/london-borough-council/sutton,London Borough of Sutton,24/07/2022,10008653,6.55, AMAZON.CO.UK RK3PA2BW5,SPLIT - FIGHT BACK (105.14%),Peoples Services,LAC - Education,A44280,
http://opendatacommunities.org/id/london-borough-council/sutton,London Borough of Sutton,24/07/2022,10008653,-0.32, AMAZON.CO.UK RK3PA2BW5,BALANCING ENTRY AMOUNT (-15.42%),Peoples Services,LAC - Education,A44280,
http://opendatacommunities.org/id/london-borough-council/sutton,London Borough of Sutton,24/07/2022,10008653,6.55, AMAZON.CO.UK 7F2WF6ZL5,SPLIT - FIGHT BACK (105.31%),Peoples Services,LAC - Education,A44280,
http://opendatacommunities.org/id/london-borough-council/sutton,London Borough of Sutton,24/07/2022,10008653,6.55, AMAZON.CO.UK C348R30W5,SPLIT - FIGHT BACK (105.31%),Peoples Services,LAC - Education,A44280,
http://opendatacommunities.org/id/london-borough-council/sutton,London Borough of Sutton,24/07/2022,10008653,-0.33, AMAZON.CO.UK C348R30W5,BALANCING ENTRY AMOUNT (-15.93%),Peoples Services,LAC - Education,A44280,
http://opendatacommunities.org/id/london-borough-council/sutton,London Borough of Sutton,24/07/2022,10008653,6.55, AMAZON.CO.UK LV7V87YI5,SPLIT - FIGHT BACK (105.31%),Peoples Services,LAC - Education,A44280,
http://opendatacommunities.org/id/london-borough-council/sutton,London Borough of Sutton,24/07/2022,10008653,-0.33, AMAZON.CO.UK LV7V87YI5,BALANCING ENTRY AMOUNT (-15.93%),Peoples Services,LAC - Education,A44280,
http://opendatacommunities.org/id/london-borough-council/sutton,London Borough of Sutton,24/07/2022,10008653,6.55, AMAZON.CO.UK KW4P14CG5,SPLIT - FIGHT BACK (105.31%),Peoples Services,LAC - Education,A44280,
http://opendatacommunities.org/id/london-borough-council/sutton,London Borough of Sutton,21/07/2022,10008653,6.99, AMAZON.CO.UK EO53D8ZQ5,SPLIT - THE LION ABOVE THE DOOR (141.5%),Peoples Services,LAC - Education,A44280,
http://opendatacommunities.org/id/london-borough-council/sutton,London Borough of Sutton,21/07/2022,10008653,-2.05, AMAZON.CO.UK EO53D8ZQ5,BALANCING ENTRY AMOUNT (-124.5%),Peoples Services,LAC - Education,A44280,
http://opendatacommunities.org/id/london-borough-council/sutton,London Borough of Sutton,21/07/2022,10008653,6.99, AMAZON.CO.UK EP38M2LE5,SPLIT - THE LION ABOVE THE DOOR (141.5%),Peoples Services,LAC - Education,A44280,
http://opendatacommunities.org/id/london-borough-council/sutton,London Borough of Sutton,21/07/2022,10008653,-2.05, AMAZON.CO.UK EP38M2LE5,BALANCING ENTRY AMOUNT (-124.5%),Peoples Services,LAC - Education,A44280,
http://opendatacommunities.org/id/london-borough-council/sutton,London Borough of Sutton,21/07/2022,10008653,6.99, AMAZON.CO.UK 7S7JZ2GS5,SPLIT - THE LION ABOVE THE DOOR (141.5%),Peoples Services,LAC - Education,A44280,
http://opendatacommunities.org/id/london-borough-council/sutton,London Borough of Sutton,21/07/2022,10008653,-2.05, AMAZON.CO.UK 7S7JZ2GS5,BALANCING ENTRY AMOUNT (-124.5%),Peoples Services,LAC - Education,A44280,
http://opendatacommunities.org/id/london-borough-council/sutton,London Borough of Sutton,20/07/2022,10008653,-157.50, AMZ AMAZON.CO.UK,"SPLIT - ACER CHROMEBOOK 314 CB314-H - (INTEL CELERON N4000, 4GB RAM, 32GB EMMC, 14 INCH HD DISPLAY, CHROME OS, SILVER) (100%)",Peoples Services,LAC - Education,A44280,
http://opendatacommunities.org/id/london-borough-council/sutton,London Borough of Sutton,19/07/2022,10008653,7.99, AMAZON.CO.UK VL4LG6W45,SPLIT - THE SAFEST PLACE IN THE WORLD/NOI AN TO�N NH?T TH? GI?I: CHILDREN'S PICTURE BOOK ENGLISH-VIETNAMESE (BILINGUAL EDITION) (BILINGUAL BOOKS (ENGL (50%),Peoples Services,LAC - Education,A44280,
http://opendatacommunities.org/id/london-borough-council/sutton,London Borough of Sutton,19/07/2022,10008653,7.99, AMAZON.CO.UK VL4LG6W45,SPLIT - FIVE YARDS OF TIME/NAM M�T TH?I GIAN: BILINGUAL ENGLISH-VIETNAMESE PICTURE BOOK (DUAL LANGUAGE/PARALLEL TEXT) (BILINGUAL PICTURE BOOK SERIES: FIVE (50%),Peoples Services,LAC - Education,A44280,
http://opendatacommunities.org/id/london-borough-council/sutton,London Borough of Sutton,18/07/2022,10008653,4.23, AMAZON.CO.UK 252FS33V5,SPLIT - C� M�O TH?N Y: VIETNAMESE EDITION OF THE HEALER CAT (100%),Peoples Services,LAC - Education,A44280,
http://opendatacommunities.org/id/london-borough-council/sutton,London Borough of Sutton,18/07/2022,10008653,5.39, AMAZON.CO.UK LT01C0A55,SPLIT - GRIMMS' FAIRY TALES. BILINGUAL BOOK IN VIETNAMESE AND ENGLISH: DUAL LANGUAGE PICTURE BOOK FOR KIDS (VIETNAMESE - ENGLISH EDITION) (100%),Peoples Services,LAC - Education,A44280,
http://opendatacommunities.org/id/london-borough-council/sutton,London Borough of Sutton,27/06/2022,10008653,35.00, AMAZON.CO.UK 2Y1BD8OU4,SPLIT - ENGLISH - TIGRIGNA DICTIONARY: A DICTIONARY OF THE TIGRINYA LANGUAGE (100%),Peoples Services,LAC - Education,A44280,
http://opendatacommunities.org/id/london-borough-council/sutton,London Borough of Sutton,27/06/2022,10008653,157.50, AMAZON.CO.UK 2Y7OM0CC4,"SPLIT - ACER CHROMEBOOK 314 CB314-H - (INTEL CELERON N4000, 4GB RAM, 32GB EMMC, 14 INCH HD DISPLAY, CHROME OS, SILVER) (100%)",Peoples Services,LAC - Education,A44280,
http://opendatacommunities.org/id/london-borough-council/sutton,London Borough of Sutton,12/07/2022,10008653,259.00, ORANGESQUIRRELEVENTS,BOUNCY CASTLE FOR FUN DAY AT QUAD,Peoples Services,LAC - Education,A44280,
http://opendatacommunities.org/id/london-borough-council/sutton,London Borough of Sutton,24/07/2022,10008653,-0.33, AMAZON.CO.UK D86UZ0SU5,BALANCING ENTRY AMOUNT (-15.93%),Peoples Services,LAC - Education,A44280,
http://opendatacommunities.org/id/london-borough-council/sutton,London Borough of Sutton,24/07/2022,10008653,6.55, AMAZON.CO.UK V93QU9TF5,SPLIT - FIGHT BACK (105.31%),Peoples Services,LAC - Education,A44280,
http://opendatacommunities.org/id/london-borough-council/sutton,London Borough of Sutton,24/07/2022,10008653,-0.33, AMAZON.CO.UK V93QU9TF5,BALANCING ENTRY AMOUNT (-15.93%),Peoples Services,LAC - Education,A44280,
http://opendatacommunities.org/id/london-borough-council/sutton,London Borough of Sutton,24/07/2022,10008653,6.55, AMAZON.CO.UK RQ5HQ8UV5,SPLIT - FIGHT BACK (105.14%),Peoples Services,LAC - Education,A44280,
http://opendatacommunities.org/id/london-borough-council/sutton,London Borough of Sutton,24/07/2022,10008653,-0.32, AMAZON.CO.UK RQ5HQ8UV5,BALANCING ENTRY AMOUNT (-15.42%),Peoples Services,LAC - Education,A44280,
http://opendatacommunities.org/id/london-borough-council/sutton,London Borough of Sutton,24/07/2022,10008653,6.55, AMAZON.CO.UK ET5UV5695,SPLIT - FIGHT BACK (105.31%),Peoples Services,LAC - Education,A44280,
http://opendatacommunities.org/id/london-borough-council/sutton,London Borough of Sutton,24/07/2022,10008653,-0.33, AMAZON.CO.UK ET5UV5695,BALANCING ENTRY AMOUNT (-15.93%),Peoples Services,LAC - Education,A44280,
http://opendatacommunities.org/id/london-borough-council/sutton,London Borough of Sutton,24/07/2022,10008653,6.55, AMAZON.CO.UK L78CC28A5,SPLIT - FIGHT BACK (105.31%),Peoples Services,LAC - Education,A44280,
http://opendatacommunities.org/id/london-borough-council/sutton,London Borough of Sutton,24/07/2022,10008653,-0.33, AMAZON.CO.UK L78CC28A5,BALANCING ENTRY AMOUNT (-15.93%),Peoples Services,LAC - Education,A44280,
http://opendatacommunities.org/id/london-borough-council/sutton,London Borough of Sutton,24/07/2022,10008653,6.55, AMAZON.CO.UK 1B8DX8NA5,SPLIT - FIGHT BACK (105.14%),Peoples Services,LAC - Education,A44280,
http://opendatacommunities.org/id/london-borough-council/sutton,London Borough of Sutton,24/07/2022,10008653,-0.32, AMAZON.CO.UK 1B8DX8NA5,BALANCING ENTRY AMOUNT (-15.42%),Peoples Services,LAC - Education,A44280,
http://opendatacommunities.org/id/london-borough-council/sutton,London Borough of Sutton,24/07/2022,10008653,6.55, AMAZON.CO.UK 5M6NW8LG5,SPLIT - FIGHT BACK (105.31%),Peoples Services,LAC - Education,A44280,
http://opendatacommunities.org/id/london-borough-council/sutton,London Borough of Sutton,24/07/2022,10008653,-0.33, AMAZON.CO.UK 5M6NW8LG5,BALANCING ENTRY AMOUNT (-15.93%),Peoples Services,LAC - Education,A44280,
http://opendatacommunities.org/id/london-borough-council/sutton,London Borough of Sutton,24/07/2022,10008653,6.55, AMAZON.CO.UK U07ZZ2R95,SPLIT - FIGHT BACK (105.14%),Peoples Services,LAC - Education,A44280,
http://opendatacommunities.org/id/london-borough-council/sutton,London Borough of Sutton,24/07/2022,10008653,-0.33, AMAZON.CO.UK 7F2WF6ZL5,BALANCING ENTRY AMOUNT (-15.93%),Peoples Services,LAC - Education,A44280,
http://opendatacommunities.org/id/london-borough-council/sutton,London Borough of Sutton,24/07/2022,10008653,6.55, AMAZON.CO.UK P226M35D5,SPLIT - FIGHT BACK (105.14%),Peoples Services,LAC - Education,A44280,
http://opendatacommunities.org/id/london-borough-council/sutton,London Borough of Sutton,24/07/2022,10008653,-0.32, AMAZON.CO.UK P226M35D5,BALANCING ENTRY AMOUNT (-15.42%),Peoples Services,LAC - Education,A44280,
http://opendatacommunities.org/id/london-borough-council/sutton,London Borough of Sutton,24/07/2022,10008653,6.55, AMAZON.CO.UK D86UZ0SU5,SPLIT - FIGHT BACK (105.31%),Peoples Services,LAC - Education,A44280,
http://opendatacommunities.org/id/london-borough-council/sutton,London Borough of Sutton,23/07/2022,10008653,-0.33, AMAZON.CO.UK YX7VP8X65,BALANCING ENTRY AMOUNT (-15.93%),Peoples Services,LAC - Education,A44280,
http://opendatacommunities.org/id/london-borough-council/sutton,London Borough of Sutton,22/07/2022,10008653,6.55, AMAZON.CO.UK 210PC9XZ5,SPLIT - FIGHT BACK (105.31%),Peoples Services,LAC - Education,A44280,
http://opendatacommunities.org/id/london-borough-council/sutton,London Borough of Sutton,22/07/2022,10008653,-0.33, AMAZON.CO.UK 210PC9XZ5,BALANCING ENTRY AMOUNT (-15.93%),Peoples Services,LAC - Education,A44280,
http://opendatacommunities.org/id/london-borough-council/sutton,London Borough of Sutton,22/07/2022,10008653,6.55, AMAZON.CO.UK KH5IH0WO5,SPLIT - FIGHT BACK (105.31%),Peoples Services,LAC - Education,A44280,
http://opendatacommunities.org/id/london-borough-council/sutton,London Borough of Sutton,22/07/2022,10008653,-0.33, AMAZON.CO.UK KH5IH0WO5,BALANCING ENTRY AMOUNT (-15.93%),Peoples Services,LAC - Education,A44280,
http://opendatacommunities.org/id/london-borough-council/sutton,London Borough of Sutton,22/07/2022,10008653,6.55, AMAZON.CO.UK A91OV3475,SPLIT - FIGHT BACK (105.31%),Peoples Services,LAC - Education,A44280,
http://opendatacommunities.org/id/london-borough-council/sutton,London Borough of Sutton,22/07/2022,10008653,-0.33, AMAZON.CO.UK A91OV3475,BALANCING ENTRY AMOUNT (-15.93%),Peoples Services,LAC - Education,A44280,
http://opendatacommunities.org/id/london-borough-council/sutton,London Borough of Sutton,22/07/2022,10008653,6.55, AMAZON.CO.UK 1K30P0B75,SPLIT - FIGHT BACK (105.31%),Peoples Services,LAC - Education,A44280,
http://opendatacommunities.org/id/london-borough-council/sutton,London Borough of Sutton,22/07/2022,10008653,-0.33, AMAZON.CO.UK 1K30P0B75,BALANCING ENTRY AMOUNT (-15.93%),Peoples Services,LAC - Education,A44280,
http://opendatacommunities.org/id/london-borough-council/sutton,London Borough of Sutton,22/07/2022,10008653,6.55, AMAZON.CO.UK KI6KT9G35,SPLIT - FIGHT BACK (105.31%),Peoples Services,LAC - Education,A44280,
http://opendatacommunities.org/id/london-borough-council/sutton,London Borough of Sutton,22/07/2022,10008653,-0.33, AMAZON.CO.UK KI6KT9G35,BALANCING ENTRY AMOUNT (-15.93%),Peoples Services,LAC - Education,A44280,
http://opendatacommunities.org/id/london-borough-council/sutton,London Borough of Sutton,22/07/2022,10008653,6.55, AMAZON.CO.UK KD9IR7KO5,SPLIT - FIGHT BACK (105.31%),Peoples Services,LAC - Education,A44280,
http://opendatacommunities.org/id/london-borough-council/sutton,London Borough of Sutton,22/07/2022,10008653,-0.33, AMAZON.CO.UK KD9IR7KO5,BALANCING ENTRY AMOUNT (-15.93%),Peoples Services,LAC - Education,A44280,
http://opendatacommunities.org/id/london-borough-council/sutton,London Borough of Sutton,22/07/2022,10008653,6.55, AMAZON.CO.UK F11JK3I95,SPLIT - FIGHT BACK (105.31%),Peoples Services,LAC - Education,A44280,
http://opendatacommunities.org/id/london-borough-council/sutton,London Borough of Sutton,22/07/2022,10008653,-0.33, AMAZON.CO.UK F11JK3I95,BALANCING ENTRY AMOUNT (-15.93%),Peoples Services,LAC - Education,A44280,
http://opendatacommunities.org/id/london-borough-council/sutton,London Borough of Sutton,22/07/2022,10008653,6.55, AMAZON.CO.UK CR6QT9EU5,SPLIT - FIGHT BACK (105.14%),Peoples Services,LAC - Education,A44280,
http://opendatacommunities.org/id/london-borough-council/sutton,London Borough of Sutton,22/07/2022,10008653,-0.32, AMAZON.CO.UK CR6QT9EU5,BALANCING ENTRY AMOUNT (-15.42%),Peoples Services,LAC - Education,A44280,
http://opendatacommunities.org/id/london-borough-council/sutton,London Borough of Sutton,22/07/2022,10008653,28.21, AMZNMKTPLACE,"SPLIT - SONY WH-CH510 WIRELESS BLUETOOTH HEADPHONES WITH MIC, 35 HOURS BATTERY LIFE WITH QUICK CHARGE, ON-EAR STYLE, HANDS CALL, VOICE ASSISTANT - BLUE (100%)",Peoples Services,LAC - Education,A44280,
http://opendatacommunities.org/id/london-borough-council/sutton,London Borough of Sutton,21/07/2022,10008653,6.99, AMAZON.CO.UK NH2J37WA5,SPLIT - THE LION ABOVE THE DOOR (141.5%),Peoples Services,LAC - Education,A44280,
http://opendatacommunities.org/id/london-borough-council/sutton,London Borough of Sutton,21/07/2022,10008653,-2.05, AMAZON.CO.UK NH2J37WA5,BALANCING ENTRY AMOUNT (-124.5%),Peoples Services,LAC - Education,A44280,
http://opendatacommunities.org/id/london-borough-council/sutton,London Borough of Sutton,21/07/2022,10008653,6.99, AMAZON.CO.UK DN35M6A45,SPLIT - THE LION ABOVE THE DOOR (141.5%),Peoples Services,LAC - Education,A44280,
http://opendatacommunities.org/id/london-borough-council/sutton,London Borough of Sutton,21/07/2022,10008653,-2.05, AMAZON.CO.UK DN35M6A45,BALANCING ENTRY AMOUNT (-124.5%),Peoples Services,LAC - Education,A44280,
http://opendatacommunities.org/id/london-borough-council/sutton,London Borough of Sutton,21/07/2022,10008653,6.99, AMAZON.CO.UK MJ7BR7KA5,SPLIT - THE LION ABOVE THE DOOR (141.78%),Peoples Services,LAC - Education,A44280,
http://opendatacommunities.org/id/london-borough-council/sutton,London Borough of Sutton,21/07/2022,10008653,-2.06, AMAZON.CO.UK MJ7BR7KA5,BALANCING ENTRY AMOUNT (-125.34%),Peoples Services,LAC - Education,A44280,
http://opendatacommunities.org/id/london-borough-council/sutton,London Borough of Sutton,21/07/2022,10008653,6.99, AMAZON.CO.UK YA7CQ2IQ5,SPLIT - THE LION ABOVE THE DOOR (141.78%),Peoples Services,LAC - Education,A44280,
http://opendatacommunities.org/id/london-borough-council/sutton,London Borough of Sutton,21/07/2022,10008653,-2.06, AMAZON.CO.UK YA7CQ2IQ5,BALANCING ENTRY AMOUNT (-125.34%),Peoples Services,LAC - Education,A44280,
http://opendatacommunities.org/id/london-borough-council/sutton,London Borough of Sutton,21/07/2022,10008653,6.99, AMAZON.CO.UK ZH1I85CU5,SPLIT - THE LION ABOVE THE DOOR (141.5%),Peoples Services,LAC - Education,A44280,
http://opendatacommunities.org/id/london-borough-council/sutton,London Borough of Sutton,21/07/2022,10008653,-2.05, AMAZON.CO.UK ZH1I85CU5,BALANCING ENTRY AMOUNT (-124.5%),Peoples Services,LAC - Education,A44280,
http://opendatacommunities.org/id/london-borough-council/sutton,London Borough of Sutton,24/07/2022,10008653,-0.32, AMAZON.CO.UK U07ZZ2R95,BALANCING ENTRY AMOUNT (-15.42%),Peoples Services,LAC - Education,A44280,
http://opendatacommunities.org/id/london-borough-council/sutton,London Borough of Sutton,24/07/2022,10008653,6.55, AMAZON.CO.UK V27QF4M95,SPLIT - FIGHT BACK (105.31%),Peoples Services,LAC - Education,A44280,
http://opendatacommunities.org/id/london-borough-council/sutton,London Borough of Sutton,24/07/2022,10008653,-0.33, AMAZON.CO.UK V27QF4M95,BALANCING ENTRY AMOUNT (-15.93%),Peoples Services,LAC - Education,A44280,
